[Event "BL 2024-25"]
[Site "Austria"]
[Date "2024.10.11"]
[Round "3.1"]
[White "Kadric, Denis"]
[Black "Krivoborodov, Egor"]
[Result "1/2-1/2"]
[Annotator "TA"]
[ECO "B27"]
[WhiteElo "2558"]
[BlackElo "2555"]
[PlyCount "64"]
[EventDate "2024.08.28"]
[EventType "team-tourn"]
[EventCountry "AUT"]
[SourceTitle "playchess.com"]
[Source "ChessBase"]
[SourceQuality "1"]
[WhiteTeam "Pinggau-Friedberg"]
[BlackTeam "Frauental"]
[TimeControl "40/5400+30:1800+30"]

{[%evp 9,64,7,5,0,7,12,34,31,28,31,33,35,44,39,60,60,56,12,34,28,70,71,134,138,154,132,136,141,133,110,120,73,73,70,126,138,114,125,96,43,33,36,35,0,0,0,0,0,0,6,0,0,0,0,0,0,0]} 1. e4 {[%emt 0:00:02]} c5 {[%emt 0:00:04]} 2. Nf3 {[%emt 0:00:05]} g6 {[%emt 0:00:04]} 3. c3 {[%emt 0:01:28]} d5 {[%emt 0:00:06]} 4. e5 {[%emt 0:00:03]} a6 {[%emt 0:00:03]} 5. d4 {[%emt 0:00:12]} Nc6 {[%emt 0:00:04]} 6. h3 {[%emt 0:00:03]} Bg7 {[%emt 0:00:05]} 7. g3 {[%emt 0:00:02]} Be6 {[%emt 0:00:08]} 8. Bg2 {[%emt 0:01:12] White is slightly better.} Qd7 {[%emt 0:00:19]} 9. Be3 {[%emt 0:00:39]} f6 {[%emt 0:00:36]} 10. exf6 {[%emt 0:06:01]} Nxf6 {[%emt 0:00:14]} 11. dxc5 {[%emt 0:00:09]} Bf7 {[%emt 0:14:36]} 12. O-O {[%emt 0:06:19]} e5 {[%emt 0:01:24] Dodges Bd4} 13. Nbd2 {[%emt 0:04:55]} h6 {[%emt 0:03:54]} 14. b4 {[%emt 0:09:46][%cal Bb2b4,Bb4b5][%mdl 32]} Be6 {[%emt 0:19:03]} 15. a4 {[%emt 0:20:45] [#] Strongly threatening b5.} Bxh3 {[%emt 0:09:15]} ({Better is} 15... e4) 16. b5 $36 {[%emt 0:00:03][%mdl 2048] White is in control.} Bxg2 {[%emt 0:00:09]} 17. Kxg2 {[%emt 0:00:02]} e4 {[%emt 0:00:12]} 18. bxc6 {[%emt 0:05:29]} exf3+ {[%emt 0:00:04]} 19. Nxf3 {[%emt 0:00:02]} bxc6 {[%emt 0:08:29]} 20. Qd3 {[%emt 0:00:05] White is more active.} (20. Nh4 $142) 20... Ne4 {[%emt 0:02:38][%cal Oe8g8]} 21. Nd2 {[%emt 0:00:28]} (21. Nh4 {is more complex.} Qg4 22. Bf4 O-O 23. f3) 21... Qe6 {[%emt 0:19:44]} (21... Qf5 $14) 22. Bd4 {[%emt 0:09:09]} O-O {[%emt 0:00:58] [#]} 23. Rae1 $1 {[%emt 0:02:12] And now Bxg7 would win.} Bxd4 {[%emt 0:00:34]} 24. cxd4 {[%emt 0:04:35]} (24. Qxd4 $16 {f3 would now be deadly.} Qf7 (24... Rae8 $2 25. f3 $18) 25. Nxe4 dxe4 26. Rxe4) 24... Rxf2+ $14 {[%emt 0:01:33]} 25. Rxf2 {[%emt 0:00:04][%cal Rd2e4]} Qh3+ $1 {[%emt 0:00:03]} 26. Kxh3 {[%emt 0:00:16]} (26. Kg1 {seems wilder.} Qh1+ 27. Kxh1 Nxf2+ 28. Kg1) 26... Nxf2+ {[%emt 0:00:02] The position is equal.} 27. Kg2 {[%emt 0:00:15]} Nxd3 {[%emt 0:00:02]} 28. Re6 {[%emt 0:00:06][%csl LRc6,LRg6]} Kf7 {[%emt 0:03:06]} 29. Rxc6 {[%emt 0:01:23]} Re8 {[%emt 0:00:05] ...Re2+ is the strong threat.} 30. Nf3 {[%emt 0:14:12]} ({Much worse is} 30. Rxa6 Re2+ 31. Kf3 Rxd2 $17) 30... Re2+ {[%emt 0:00:45]} 31. Kg1 {[%emt 0:00:02][%cal Oc6d6]} Re3 {[%emt 0:00:34]} 32. Kg2 {[%emt 0:00:02][%cal Oc6d6]} Re2+ {[%emt 0:00:07] Blacks defense is rewarded with a draw.   Weighted Error Value: White=0.11 (very precise) /Black=0.09 (flawless) .  Mistake:       	White=2     	Black=2      Inaccurate:     	White=2     	Black=1      OK:         	White=9     	Black=13     Best:        	White=2     	Black=3      Strong:       	White=1     	Black=1} 1/2-1/2

[Event "BL 2024-25"]
[Site "Austria"]
[Date "2024.10.11"]
[Round "3.2"]
[White "Schnider, Gert"]
[Black "Petrov, Nikita"]
[Result "0-1"]
[Annotator "TA"]
[ECO "B45"]
[WhiteElo "2362"]
[BlackElo "2589"]
[PlyCount "102"]
[EventDate "2024.08.28"]
[EventType "team-tourn"]
[EventCountry "AUT"]
[SourceTitle "playchess.com"]
[Source "ChessBase"]
[SourceQuality "1"]
[WhiteTeam "Frauental"]
[BlackTeam "Pinggau-Friedberg"]
[TimeControl "40/5400+30:1800+30"]

{[%evp 24,102,26,33,32,43,41,0,36,9,11,10,23,-27,3,-86,-90,-81,-88,-89,-81,-112,26,-36,-22,-32,12,-89,-9,-33,-31,-85,-71,-66,-41,-43,-33,-55,-33,-77,-93,-120,-89,-163,-133,-420,-421,-578,-576,-591,-605,-542,-110,-100,0,-616,-352,-562,-525,-540,-558,-527,-547,-569,-542,-543,-528,-525,-439,-803,-787,-808,-793,-913,-872,-931,-1038,-1106,-1088,-5423,-464]} 1. e4 {[%emt 0:00:02]} c5 {[%emt 0:00:47]} 2. Nf3 {[%emt 0:00:05]} Nc6 {[%emt 0:00:18]} 3. d4 {[%emt 0:00:07]} cxd4 {[%emt 0:00:06]} 4. Nxd4 {[%emt 0:00:03]} e6 {[%emt 0:00:37]} 5. Nc3 {[%emt 0:00:22]} Nf6 {[%emt 0:01:33]} 6. Ndb5 {[%emt 0:02:57]} Bb4 {[%emt 0:01:58]} 7. Bf4 {[%emt 0:05:08]} O-O {[%emt 0:11:47]} 8. Bc7 {[%emt 0:00:05] 8.Bc7 is better than 8.Bd6. B45: Sicilian Four Knights.} Qe7 {[%emt 0:00:07]} 9. Bd6 {[%emt 0:00:03]} Bxd6 {[%emt 0:00:10]} 10. Qxd6 {[%emt 0:00:04]} Qd8 {[%emt 0:00:20]} 11. O-O-O {[%emt 0:02:12]} a6 {[%emt 0:01:48]} 12. Nd4 {[%emt 0:00:06]} Ne7 {[%emt 0:00:48]} 13. h4 {[%emt 0:01:22]} Ne8 {[%emt 0:14:03]} 14. Qh2 {[%emt 0:00:15]} b5 {[%emt 0:01:22]} 15. h5 {[%emt 0:00:07]} h6 {[%emt 0:01:44]} 16. g4 {[%emt 0:02:41]} b4 {[%emt 0:04:54]} 17. Nce2 $146 {[%emt 0:07:30]} ({Predecessor:} 17. Na4 Qa5 18. b3 Bb7 19. f3 Rc8 20. Kb1 Qc7 21. Qxc7 Rxc7 22. Nb6 Nf6 23. Rh2 {1-0 Fressinet,L (2652)-Dreev,A (2606) Julius Baer Rapid Div 2 W 2023 (1.2)}) 17... Qc7 {[%emt 0:05:17]} 18. Qh4 {[%emt 0:21:20]} ({Better is} 18. e5) 18... f6 {[%emt 0:02:07]} (18... d6 $5) 19. Kb1 {[%emt 0:13:11]} (19. Qg3 $11) 19... Bb7 $17 {[%emt 0:02:03]} 20. f3 {[%emt 0:00:39]} Rc8 {[%emt 0:01:37]} 21. Rd2 {[%emt 0:01:09]} Nd6 {[%emt 0:02:21]} 22. Nc1 {[%emt 0:00:16]} Qb6 {[%emt 0:05:17]} (22... Nf7 $17 {Hoping for ...e5.} 23. Bg2 e5) 23. Qh2 {[%emt 0:08:27]} ({White should play} 23. Ndb3 $1 $11) 23... Nf7 {[%emt 0:01:33]} 24. Qf2 {[%emt 0:05:57]} Kh8 {[%emt 0:04:05]} 25. Bd3 {[%emt 0:02:56]} (25. Ndb3 $11 Qxf2 26. Rxf2) 25... Ne5 {[%emt 0:02:07]} (25... Ng5 $17) 26. Rg1 {[%emt 0:04:23]} d5 {[%emt 0:04:42]} 27. exd5 {[%emt 0:05:59]} (27. Ndb3 $15 Qxf2 28. Rxf2) 27... Nxd5 $17 {[%emt 0:00:44]} 28. f4 {[%emt 0:01:00]} Nc3+ {[%emt 0:04:50]} 29. Ka1 $1 {[%emt 0:00:33]} (29. bxc3 $2 {too greedy.} bxc3+ 30. Ncb3 (30. Ndb3 $2 Qd6 $19) 30... cxd2 31. fxe5 fxe5 32. Qxd2 exd4 $19) 29... Nxd3 {[%emt 0:05:59]} 30. cxd3 {[%emt 0:00:12]} Nd5 {[%emt 0:20:26]} 31. Ndb3 {[%emt 0:02:22]} Qc7 {[%emt 0:00:00]} 32. f5 {[%emt 0:02:43]} e5 {[%emt 0:00:00]} 33. Kb1 {[%emt 0:00:32]} (33. d4 $17 {keeps fighting.}) 33... a5 {[%emt 0:00:00]} 34. Qa7 $2 {[%emt 0:00:49][%mdl 8192]} (34. Rc2 $17 Qd6 (34... Qxc2+ $2 35. Qxc2 Rxc2 36. Kxc2 $19) 35. Rxc8 Rxc8 36. Nxa5) 34... a4 $19 {[%emt 0:00:00]} 35. Qxa4 {[%emt 0:05:32]} Qb6 {[%emt 0:00:00]} 36. Re1 {[%emt 0:00:05]} Ra8 {[%emt 0:00:00]} 37. Qd7 {[%emt 0:00:02]} Rad8 $2 {[%emt 0:00:00]} (37... Rfe8 $19 {is more deadly.} 38. d4 Re7 39. Qxe7 Nxe7 40. dxe5 fxe5) 38. Qa4 $17 {[%emt 0:00:06]} Ra8 $2 {[%emt 0:00:00][%mdl 8192]} (38... Ne7 $17 39. d4 Nc6) 39. Qd7 $19 {[%emt 0:00:04]} Rfd8 {[%emt 0:00:00]} 40. Qf7 {[%emt 0:05:09]} (40. Qe6 {was forced.} Qa7 41. Rh2) 40... Bc8 {[%emt 0:01:18]} 41. Rc2 {[%emt 0:15:44]} Ra7 {[%emt 0:00:18]} 42. Qxd5 {[%emt 0:00:12]} Rxd5 {[%emt 0:00:04]} 43. Rxc8+ {[%emt 0:00:03]} Rd8 {[%emt 0:01:42]} 44. Rc4 {[%emt 0:01:32]} Rc7 {[%emt 0:01:07]} 45. Ree4 {[%emt 0:00:10]} Rdc8 {[%emt 0:04:59]} 46. Rxc7 {[%emt 0:03:47]} (46. Nd2 $142) 46... Rxc7 $19 {[%emt 0:02:50]} 47. Nd2 {[%emt 0:01:54]} Qg1 {[%emt 0:01:28]} 48. Ndb3 {[%emt 0:01:03]} Qd1 {[%emt 0:01:27]} 49. a3 {[%emt 0:00:37]} bxa3 {[%emt 0:00:39]} 50. bxa3 {[%emt 0:00:01]} Rc3 {[%emt 0:02:53]} 51. Kb2 {[%emt 0:01:02]} Qc2+ {[%emt 0:00:09]} 0-1

[Event "BL 2024-25"]
[Site "Austria"]
[Date "2024.10.11"]
[Round "3.3"]
[White "Fahrner, Kurt"]
[Black "Erdos, Viktor"]
[Result "0-1"]
[Annotator "TA"]
[ECO "A53"]
[WhiteElo "2314"]
[BlackElo "2538"]
[PlyCount "70"]
[EventDate "2024.08.28"]
[EventType "team-tourn"]
[EventCountry "AUT"]
[SourceTitle "playchess.com"]
[Source "ChessBase"]
[SourceQuality "1"]
[WhiteTeam "Frauental"]
[BlackTeam "Pinggau-Friedberg"]
[TimeControl "40/5400+30:1800+30"]

{[%evp 9,70,42,58,53,58,60,57,50,60,30,75,40,77,92,91,91,83,43,133,121,125,128,128,118,100,77,115,113,107,113,114,75,203,201,253,139,139,122,147,140,182,176,214,219,212,112,116,118,108,108,113,111,115,117,102,56,56,0,0,0,26,0,0]} 1. d4 {[%emt 0:00:07]} d6 {[%emt 0:00:11]} 2. Nf3 {[%emt 0:00:51]} Nf6 {[%emt 0:00:10]} 3. c4 {[%emt 0:10:30]} Bf5 {[%emt 0:00:24][%cal Bc8f5,Bf5e4,Be4c6][%mdl 32]} 4. Qb3 {[%emt 0:09:23]} Qc8 {[%emt 0:01:13]} 5. Nc3 {[%emt 0:03:13]} Na6 {[%emt 0:10:51][%cal Oe7e5]} 6. Bg5 {[%emt 0:26:01]} Ne4 {[%emt 0:06:08]} 7. Nxe4 {[%emt 0:00:14]} Bxe4 {[%emt 0:00:06]} 8. Nd2 {[%emt 0:00:20] White is slightly better.} Bc6 {[%emt 0:15:38]} 9. Qc3 {[%emt 0:20:44]} Qf5 {[%emt 0:17:32]} 10. Bh4 {[%emt 0:03:36]} g5 {[%emt 0:00:17]} 11. d5 {[%emt 0:03:13][%cal Bd4d5,Bd5c6,Bc6b7][%mdl 32]} gxh4 {[%emt 0:07:54]} 12. dxc6 {[%emt 0:02:15]} Rg8 {[%emt 0:01:34]} 13. g4 {[%emt 0:00:56]} Qc5 {[%emt 0:06:57]} (13... Qc8 $14) 14. cxb7 $16 {[%emt 0:02:18]} Rb8 {[%emt 0:02:28]} 15. Bg2 {[%emt 0:00:08] Against Qc6} Rxg4 {[%emt 0:03:01]} 16. Qf3 {[%emt 0:02:21]} Rg6 {[%emt 0:10:25]} 17. Nb3 {[%emt 0:08:56][%cal Bd2b3,Bb3d4,Bd4b5][%mdl 32]} Qb4+ {[%emt 0:06:32]} 18. Kf1 $1 {[%emt 0:00:06] Qc6+ is the strong threat.} Qb6 {[%emt 0:01:20]} 19. Qc6+ $40 {[%emt 0:00:46][%mdl 128] White attacks with force.} Kd8 {[%emt 0:02:34]} 20. Qxb6 {[%emt 0:00:13]} axb6 {[%emt 0:00:58] Black is weak on the light squares} (20... cxb6 $16 21. Nd4 Kc7 22. Nb5+ Kd7 23. Nxa7 Bg7) 21. Nd4 $1 $18 {[%emt 0:00:06]} Nb4 {[%emt 0:00:19]} 22. a3 {[%emt 0:01:51]} (22. Nc6+ $1 $18 Nxc6 23. Bxc6) 22... c5 $16 {[%emt 0:00:05]} 23. Nb5 {[%emt 0:02:04]} Nc2 {[%emt 0:02:52]} 24. Rd1 {[%emt 0:00:25] And now e3 would win.} Rf6 {[%emt 0:00:07]} 25. Bf3 {[%emt 0:00:59]} Bg7 {[%emt 0:01:22][%cal Oc2d4]} 26. Rg1 $1 {[%emt 0:00:25]} Rg6 {[%emt 0:00:05] [#]} 27. Rxg6 {[%emt 0:01:14]} (27. e3 $1 $18 {aiming for Rc1.} Rxg1+ 28. Kxg1) 27... hxg6 {[%emt 0:00:06] [#]} 28. e3 $1 {[%emt 0:00:03] Against Nd4. Strongly threatening Rb1.} Bxb2 {[%emt 0:01:06]} 29. Rd2 {[%emt 0:00:55]} Nxa3 {[%emt 0:00:32]} 30. Rxb2 {[%emt 0:00:29]} Nxc4 {[%emt 0:00:12]} 31. Ra2 {[%emt 0:00:04]} Na5 {[%emt 0:00:17][%cal Od8d7]} 32. Ke2 {[%emt 0:01:05]} ({White should try} 32. Ra4 $16) 32... Kd7 $14 {[%emt 0:02:19][%cal Oe7e6]} 33. Nc3 {[%emt 0:00:34]} (33. Bd5 e6 34. Bg2 f5 $11) (33. Ra4 $14) 33... e6 $1 $11 {[%emt 0:00:38][%cal Od6d5]} 34. Rb2 {[%emt 0:00:26]} Nc4 {[%emt 0:00:30]} (34... d5 35. Rxb6 Rxb7 36. Rxb7+ Nxb7 37. e4) 35. Ra2 {[%emt 0:00:15]} Na5 {[%emt 0:00:00][%mdl 32768] Weighted Error Value: White=0.21 (precise) /Black=0.24 (precise) .  Mistake:       	White=4     	Black=2      Inaccurate:     	White=5     	Black=4      OK:         	White=11    	Black=9      Best:        	White=1     	Black=4      Strong:       	White=4     	Black=1     . Loss on time!?} 0-1

[Event "BL 2024-25"]
[Site "Austria"]
[Date "2024.10.11"]
[Round "3.4"]
[White "Krebs, Johann"]
[Black "Sankalp Gupta"]
[Result "1/2-1/2"]
[Annotator "TA"]
[ECO "E32"]
[WhiteElo "2217"]
[BlackElo "2534"]
[PlyCount "99"]
[EventDate "2024.08.28"]
[EventType "team-tourn"]
[EventCountry "AUT"]
[SourceTitle "playchess.com"]
[Source "ChessBase"]
[SourceQuality "1"]
[WhiteTeam "Frauental"]
[BlackTeam "Pinggau-Friedberg"]
[TimeControl "40/5400+30:1800+30"]

{[%evp 23,99,33,13,0,73,63,66,60,74,60,59,70,45,25,42,37,117,81,76,40,49,60,251,256,320,318,317,318,306,327,320,324,524,519,540,512,542,538,496,496,735,708,691,708,666,716,831,816,770,771,815,677,700,662,710,711,725,712,562,425,498,588,623,623,588,432,443,222,215,93,59,59,104,34,50,22,22,22]} 1. d4 {[%emt 0:00:05]} Nf6 {[%emt 0:00:46]} 2. c4 {[%emt 0:00:22]} e6 {[%emt 0:00:23]} 3. Nc3 {[%emt 0:00:09]} Bb4 {[%emt 0:00:02]} 4. Qc2 {[%emt 0:00:05]} O-O {[%emt 0:00:36]} 5. Nf3 {[%emt 0:01:57]} d6 {[%emt 0:05:44]} 6. e3 {[%emt 0:10:05]} b6 {[%emt 0:01:52]} 7. Be2 {[%emt 0:00:14]} Bb7 {[%emt 0:00:04]} 8. O-O {[%emt 0:00:08]} Nbd7 {[%emt 0:06:14]} 9. a3 {[%emt 0:05:06]} Bxc3 {[%emt 0:00:49]} 10. Qxc3 {[%emt 0:00:03]} Ne4 {[%emt 0:01:09]} 11. Qc2 {[%emt 0:00:10]} f5 {[%emt 0:03:37]} 12. b4 {[%emt 0:11:00]} Rf6 {[%emt 0:00:32]} 13. d5 {[%emt 0:07:08]} exd5 {[%emt 0:02:58]} (13... c5 $11 {remains equal.}) 14. Bb2 $16 {[%emt 0:07:50]} Rg6 {[%emt 0:01:13]} 15. cxd5 $1 {[%emt 0:00:28] White is slightly better.} Bxd5 {[%emt 0:00:49]} 16. Bc4 {[%emt 0:07:07]} Bxc4 {[%emt 0:05:33]} 17. Qxc4+ {[%emt 0:00:01]} Kh8 {[%emt 0:00:06]} 18. Qf7 {[%emt 0:01:35][%cal Oa1c1][%mdl 1024] White has compensation.} Nef6 {[%emt 0:06:28]} 19. Qe6 {[%emt 0:09:33][%cal Of1c1]} Qc8 {[%emt 0:05:06]} (19... Ne4 $14 20. Qxf5 Qe7) 20. Nh4 {[%emt 0:02:37]} Rg5 {[%emt 0:03:20]} 21. f4 {[%emt 0:04:24] White has more active pieces.} (21. Nxf5 $5 Qb7 22. Ng3 $14) 21... Rh5 {[%emt 0:07:42]} 22. Nxf5 {[%emt 0:04:08] Threatens to win with Rac1.} Qf8 $2 {[%emt 0:00:09] [#] Black is weak on the dark squares} ({Better is} 22... Qg8 $1 $14 23. Qxg8+ Kxg8) 23. g4 $1 $18 {[%emt 0:05:33][%mdl 512]} Re8 {[%emt 0:10:21] [#]} (23... Rxf5 24. Qxf5) 24. Qxd7 {[%emt 0:11:12][%mdl 512]} Nxd7 {[%emt 0:00:07]} 25. Bxg7+ {[%emt 0:00:07]} (25. gxh5 $2 {is the wrong capture.} Qxf5 26. h6 Qg6+ (26... Rxe3 $2 27. Rf2 $19) 27. Kh1 Qxh6 $19 (27... Rxe3 $2 28. hxg7+ Kg8 29. f5 $19) (27... Qe4+ $2 28. Kg1 $19)) 25... Qxg7 {[%emt 0:00:12]} 26. Nxg7 {[%emt 0:00:06]} Kxg7 {[%emt 0:00:10]} 27. gxh5 {[%emt 0:00:01]} Rxe3 $2 {[%emt 0:00:16]} (27... Nf6 28. Rac1 c5 29. bxc5 dxc5) 28. Rae1 {[%emt 0:00:10]} Rxe1 {[%emt 0:00:05]} 29. Rxe1 {[%emt 0:00:04][%mdl 4096] Endgame. KR-KN} Kf7 {[%emt 0:00:03] Against Re7+} 30. b5 {[%emt 0:02:23]} Nc5 {[%emt 0:00:28]} 31. Kg2 {[%emt 0:00:17]} a6 {[%emt 0:00:42]} (31... Ne6 $142 32. f5 Nc5) 32. bxa6 {[%emt 0:00:35]} Nxa6 {[%emt 0:00:01]} 33. Kf3 {[%emt 0:00:11]} Nc5 {[%emt 0:00:05]} 34. Rg1 {[%emt 0:00:17]} Kf6 {[%emt 0:01:38]} 35. h6 {[%emt 0:02:51]} Ne6 {[%emt 0:00:01] Against Rg7} 36. Rg8 {[%emt 0:02:41]} d5 {[%emt 0:00:02] [#]} 37. f5 $1 {[%emt 0:00:43]} Kxf5 {[%emt 0:00:34] [#]} 38. Rg7 $1 {[%emt 0:01:26][%mdl 512]} Kf6 {[%emt 0:00:02]} 39. Rd7 {[%emt 0:00:11]} (39. Rxh7 $2 {loses.} Ng5+ 40. Kg4 Nxh7 $19) 39... Kg6 {[%emt 0:03:11]} 40. Kg4 {[%emt 0:00:19]} Kxh6 {[%emt 0:02:42]} 41. Kf5 {[%emt 0:07:33]} Nd4+ {[%emt 0:01:14]} 42. Ke5 {[%emt 0:01:47]} Nb5 {[%emt 0:00:02]} 43. Rxd5 {[%emt 0:02:01]} Nxa3 {[%emt 0:02:49]} 44. Kf6 {[%emt 0:00:20] White threatens Rd3 and mate.} Nc2 {[%emt 0:00:58]} 45. Rd2 {[%emt 0:06:22]} (45. Rd3 $142 {[%cal Rd3h3]} Kh5 46. Rc3) 45... Ne1 {[%emt 0:01:44]} 46. Rd4 {[%emt 0:06:03]} (46. Re2 $18 Nf3 47. Re3) 46... Kh5 $16 {[%emt 0:00:48]} 47. Rd7 {[%emt 0:00:28][%csl LRc7,LRh7]} h6 {[%emt 0:03:25]} 48. Kf5 {[%emt 0:05:41]} ({White should try} 48. Rxc7 $16 {Kf5 is the strong threat.} Kg4 49. Rc3) 48... c5 {[%emt 0:16:22]} 49. Rb7 {[%emt 0:03:26]} Nf3 {[%emt 0:01:41]} 50. Ke4 {[%emt 0:05:18] Weighted Error Value: White=0.27 (precise) /Black=0.30.  Loses game:     	---       	Black=1      Mistake:       	White=3     	Black=4      Inaccurate:     	White=3     	---        OK:         	White=9     	Black=10     Best:        	White=4     	Black=3      Strong:       	White=1     	---        Brilliant:      	White=1     	---} 1/2-1/2

[Event "BL 2024-25"]
[Site "Austria"]
[Date "2024.10.11"]
[Round "3.5"]
[White "Ivanisevic, Ivan"]
[Black "Ebner, Hubert"]
[Result "1-0"]
[Annotator "TA"]
[ECO "E70"]
[WhiteElo "2519"]
[BlackElo "2182"]
[PlyCount "101"]
[EventDate "2024.08.28"]
[EventType "team-tourn"]
[EventCountry "AUT"]
[SourceTitle "playchess.com"]
[Source "ChessBase"]
[SourceQuality "1"]
[WhiteTeam "Pinggau-Friedberg"]
[BlackTeam "Frauental"]
[TimeControl "40/5400+30:1800+30"]

{[%evp 14,101,49,32,35,8,11,0,0,0,12,12,8,7,232,204,218,202,179,200,187,176,176,180,217,167,194,151,196,196,198,155,152,157,170,134,214,183,184,170,181,149,182,163,156,97,100,90,91,89,202,208,271,268,249,198,213,206,318,310,991,471,5932,5932,5932,4610,2383,471,1965,471,1647,596,29972,29973,29973,29974,29974,29975,29975,29976,29976,29977,11992,11992,29978,29979,29980,29980,29980,29977]} 1. d4 {[%emt 0:00:58]} Nf6 {[%emt 0:00:32]} 2. c4 {[%emt 0:00:18]} g6 {[%emt 0:00:29]} 3. Nc3 {[%emt 0:00:06]} Bg7 {[%emt 0:00:21]} 4. e4 {[%emt 0:00:07]} d6 {[%emt 0:00:11]} 5. Bd3 {[%emt 0:00:06]} O-O {[%emt 0:00:48]} 6. Nge2 {[%emt 0:00:05]} c5 {[%emt 0:00:25]} 7. d5 {[%emt 0:00:07]} e6 {[%emt 0:00:31]} 8. Bg5 {[%emt 0:00:07]} h6 {[%emt 0:01:35]} 9. Bh4 {[%emt 0:00:08]} exd5 {[%emt 0:01:26]} 10. exd5 {[%emt 0:00:10]} Nbd7 {[%emt 0:04:28][%cal Bb8d7,Bd7e5,Be5d3][%mdl 32] The position is equal.} 11. f4 {[%emt 0:00:09][%cal Bf2f4,Bf4g5][%mdl 32] Against Ne5} g5 {[%emt 0:00:27]} 12. fxg5 {[%emt 0:00:22]} Ng4 {[%emt 0:00:09]} 13. Qd2 {[%emt 0:00:57][%cal Od3h7] [#] Dodges Ne3. Bh7+! is the strong threat.} Bd4 $2 {[%emt 0:02:27]} (13... Nde5 $11 {and Black is okay.}) 14. Nxd4 $18 {[%emt 0:06:29]} (14. gxh6 $2 Qxh4+ 15. g3 Qe7 (15... Qxh6 $2 16. Nxd4 cxd4 17. Qxh6 $19) 16. h7+ Kh8 $19) 14... cxd4 {[%emt 0:00:08]} 15. Ne2 {[%emt 0:00:22][%cal Oe1g1,Bc3e2,Be2d4,Bd4e6][%mdl 32] Hoping for 0-0! Active counter play!} (15. gxh6 $2 Qxh4+ 16. g3 dxc3 $19 (16... Qxh6 $2 17. Qxh6 Nxh6 18. Nb5 $19)) 15... Nde5 {[%emt 0:25:30]} 16. O-O {[%emt 0:00:27][%cal Of1f6] Threatens to win with Rf6!} (16. gxh6 $2 Qxh4+ 17. g3 Nf3+ (17... Qxh6 $2 18. Qxh6 Nxh6 19. O-O-O $19) 18. Kd1 Nf2+ (18... Qxh6 $2 19. Qxh6 Nxh6 20. Rf1 $19) 19. Kc2 Qg4 $19) (16. Nxd4 Nxd3+ 17. Qxd3 hxg5 $11) 16... Nxd3 {[%emt 0:04:11]} 17. Qxd3 {[%emt 0:00:10]} hxg5 {[%emt 0:00:07]} 18. Bf2 {[%emt 0:02:33]} Ne5 {[%emt 0:11:30]} 19. Qg3 {[%emt 0:06:50]} Bg4 {[%emt 0:22:19]} 20. Nxd4 {[%emt 0:02:20] aiming for h3.} f5 {[%emt 0:00:10][%cal Bf7f5,Bf5f4][%mdl 32]} 21. Ne6 {[%emt 0:00:43]} f4 {[%emt 0:00:10]} 22. Qxg4 {[%emt 0:00:07]} Nxg4 {[%emt 0:00:27]} 23. Nxd8 {[%emt 0:00:05]} Rfxd8 {[%emt 0:02:01]} 24. h4 {[%emt 0:01:32]} Ne5 {[%emt 0:03:56]} (24... Re8 $16 {was worth a try.} 25. hxg5 Kh7) 25. hxg5 {[%emt 0:04:06]} Nxc4 {[%emt 0:00:58][%cal Od8e8]} 26. Bd4 {[%emt 0:00:37]} Rf8 {[%emt 0:03:52]} 27. Rac1 {[%emt 0:01:15]} Rac8 {[%emt 0:08:32]} 28. Rfe1 {[%emt 0:07:48]} (28. Bxa7 b6 29. Rc3 Nxb2 30. Rxc8 Rxc8 31. Bxb6 Na4) 28... Ne3 {[%emt 0:04:33]} 29. Bxe3 {[%emt 0:01:59]} ({White should play} 29. g6) 29... fxe3 $16 {[%emt 0:00:06]} 30. Rxc8 {[%emt 0:00:04]} Rxc8 {[%emt 0:00:07]} 31. Rxe3 {[%emt 0:00:02][%mdl 4096] Endgame. Strongly threatening Re7. KR-KR} Rc5 {[%emt 0:02:25]} (31... Rc2 $16) 32. Re7 $18 {[%emt 0:02:56]} Rb5 {[%emt 0:00:08]} 33. b3 {[%emt 0:00:27]} a5 {[%emt 0:01:15]} 34. Kh2 {[%emt 0:09:43]} (34. g6 b6 35. Rb7 Rxd5 $16) 34... Rxd5 {[%emt 0:00:31]} 35. Rxb7 {[%emt 0:01:00]} a4 {[%emt 0:00:07]} (35... Rxg5 $142 36. a4 d5) 36. bxa4 {[%emt 0:08:37]} Rd4 $2 {[%emt 0:00:34]} (36... Ra5 37. Rb4 Rxg5) 37. Ra7 {[%emt 0:00:48]} (37. a5 $142 {Threatening mate with a6.} Ra4 38. Ra7) 37... Rd2 {[%emt 0:00:44]} (37... Rd3 $142 38. g3 Rd5) 38. Kg3 {[%emt 0:02:55]} Rxa2 {[%emt 0:00:11]} 39. Kf3 {[%emt 0:00:34]} d5 {[%emt 0:00:58]} 40. g3 {[%emt 0:03:20]} Ra1 {[%emt 0:00:35]} (40... Ra3+ $142 41. Kf4 d4) 41. Kf4 {[%emt 0:32:07]} (41. a5 $142 {Black must now prevent Kf4.} Re1 42. a6) 41... d4 {[%emt 0:16:09]} (41... Re1 $142 42. Kf5 Rf1+ 43. Kg6 Kf8) 42. Ke4 {[%emt 0:00:00]} d3 {[%emt 0:00:22]} 43. Kxd3 {[%emt 0:00:00]} Ra3+ {[%emt 0:00:08]} 44. Ke4 {[%emt 0:00:00]} Rxg3 {[%emt 0:01:29]} 45. Kf5 {[%emt 0:00:00]} Rc3 {[%emt 0:03:02]} 46. Kg6 {[%emt 0:00:00]} Rc6+ {[%emt 0:00:23] [#]} 47. Kh5 $1 {[%emt 0:00:00]} Rd6 {[%emt 0:05:31]} 48. a5 {[%emt 0:00:00][%cal Ba4a5,Ba5a6][%mdl 32] White wants to mate with a6.} Rc6 {[%emt 0:01:18]} 49. a6 {[%emt 0:00:00] White mates.} Rd6 {[%emt 0:01:30]} 50. g6 {[%emt 0:00:00]} Rd1 {[%emt 0:01:25]} 51. Rb7 {[%emt 0:00:00] Weighted Error Value: White=0.45/Black=0.34.  Loses game:     	---       	Black=1      Mistake:       	White=2     	Black=6      Inaccurate:     	White=1     	Black=2      OK:         	White=11    	Black=10     Best:        	White=4     	Black=5} 1-0